bitfinex/quotes_BTCUSD_20220226
["timestamp","ask_amount","ask_price","bid_price","bid_amount"]
[1645882775046,0.19999999,39162.0,39152.0,0.02565]
[1645882775240,0.3102923,39159.0,39152.0,0.02565]
[1645882775442,0.3102923,39159.0,39154.0,0.16838298]
[1645882775642,0.3602923,39159.0,39154.0,0.16838298]
[1645882776041,0.3602923,39159.0,39155.0,0.02746784]
[1645882776341,0.36,39159.0,39154.0,0.16838298]
[1645882776640,0.37529228,39159.0,39154.0,0.16838298]
[1645882776841,0.37529228,39159.0,39155.0,0.02746784]
[1645882777041,0.37529228,39159.0,39154.0,0.16838298]
[1645882777286,0.375,39159.0,39154.0,0.16838298]
[1645882777691,0.37629228,39159.0,39154.0,0.16838298]
[1645882777888,0.37629228,39159.0,39155.0,0.02746784]
[1645882778290,0.37629228,39159.0,39154.0,0.16838298]
[1645882778490,0.376,39159.0,39154.0,0.16838298]
[1645882778694,0.375,39159.0,39154.0,0.16838298]
[1645882778892,0.37529206,39159.0,39154.0,0.16838298]
[1645882779494,0.1998,39158.0,39154.0,0.16838298]
[1645882781450,0.1998,39158.0,39149.0,41.01287043]
[1645882781451,0.063903,39156.0,39149.0,41.01287043]
[1645882781646,0.3,39155.0,39149.0,41.01287043]
[1645882781841,0.5999,39155.0,39149.0,41.01287043]
[1645882782043,0.6499,39155.0,39149.0,41.01287043]
[1645882782243,0.127809,39156.0,39150.0,0.3]
[1645882782446,0.001,39158.0,39150.0,0.32565]
[1645882782647,0.37529206,39159.0,39157.0,0.02746784]
[1645882782849,0.11730025,39166.0,39158.0,0.377765]
[1645882783049,1.0066,39171.0,39159.0,0.3]
[1645882783249,1.0066,39171.0,39165.0,0.15191951]
[1645882783548,0.003,39166.0,39165.0,0.15191951]
[1645882784650,1.30639999,39171.0,39165.0,0.15191951]
[1645882784887,0.09999999,39169.0,39160.0,0.14666784]
[1645882785088,0.09999999,39169.0,39160.0,0.1192]
[1645882785287,0.09999999,39167.0,39160.0,0.1192]
[1645882785490,0.06388747,39167.0,39156.0,0.02746784]
[1645882785688,0.16388747,39167.0,39156.0,0.02746784]
[1645882785889,0.127783,39166.0,39155.0,0.32746784]
[1645882786088,0.27777846,39167.0,39157.0,0.14969839]
[1645882786089,0.00015511,39165.0,39157.0,0.14969839]
[1645882786289,0.00015511,39165.0,39157.0,0.17716623]
[1645882786888,0.26389099,39167.0,39157.0,0.17716623]
[1645882786889,0.163891,39167.0,39157.0,0.17716623]
[1645882787288,0.163891,39167.0,39157.0,0.14969839]
[1645882787289,0.00033322,39163.0,39157.0,0.14969839]
[1645882787890,0.26022421,39167.0,39158.0,1.15]
[1645882788736,0.25922421,39167.0,39158.0,1.15]
[1645882789536,0.26022421,39167.0,39158.0,1.15]
[1645882789737,0.16022422,39167.0,39158.0,1.15]
[1645882790139,0.16022422,39167.0,39157.0,0.14969839]
[1645882790538,0.22411267,39167.0,39157.0,0.14969839]
[1645882790742,0.22311267,39167.0,39157.0,0.14969839]
[1645882791037,0.00015489,39165.0,39157.0,0.14969839]
[1645882791238,0.06389,39163.0,39157.0,0.14969839]
[1645882791839,0.06389,39163.0,39154.0,0.1931]
[1645882792038,0.06389,39163.0,39157.0,0.00033328]
[1645882792488,0.11389,39163.0,39157.0,0.00033328]
[1645882792688,0.0514,39162.0,39157.0,0.00033328]
[1645882792890,0.0514,39162.0,39158.0,0.13889381]
[1645882793086,0.1014,39162.0,39158.0,0.13889381]
[1645882793488,0.1024,39162.0,39158.0,0.13889381]
[1645882793690,0.0524,39162.0,39158.0,0.13889381]
[1645882794089,0.1024,39162.0,39158.0,0.13889381]
[1645882794290,0.0524,39162.0,39158.0,0.13889381]
[1645882794489,0.1024,39162.0,39158.0,0.13889381]
[1645882794889,0.0514,39162.0,39158.0,0.13889381]
[1645882795289,0.0503332,39165.0,39159.0,0.02746784]
[1645882795490,0.04361683,39165.0,39159.0,0.02711784]
[1645882795691,0.0003332,39165.0,39159.0,0.02711784]
[1645882796042,0.0003332,39165.0,39158.0,0.13889381]
[1645882796237,0.0003332,39165.0,39159.0,0.02711784]
[1645882796638,0.10099999,39167.0,39159.0,0.02711784]
[1645882796940,0.00032631,39165.0,39159.0,0.02711784]
[1645882797838,0.20139999,39167.0,39159.0,0.02711784]
[1645882798039,0.00032631,39165.0,39159.0,0.02711784]
[1645882798940,0.2514,39168.0,39159.0,0.02711784]
[1645882799339,0.26032631,39165.0,39159.0,0.02711784]
[1645882800198,0.26,39165.0,39161.0,0.02711784]
[1645882800394,0.26031,39165.0,39161.0,0.02711784]
[1645882800794,0.26019669,39165.0,39161.0,0.02711784]
[1645882801394,0.25988669,39165.0,39161.0,0.02711784]
[1645882801595,0.2601967,39165.0,39161.0,0.02711784]
[1645882802194,0.2601967,39165.0,39158.0,0.13889381]
[1645882802393,0.2601967,39165.0,39159.0,0.02711784]
[1645882802598,0.25988669,39165.0,39159.0,0.02711784]
[1645882802794,0.26019669,39165.0,39159.0,0.02711784]
[1645882803844,0.25988669,39165.0,39159.0,0.02711784]
[1645882804038,0.2601978,39165.0,39159.0,0.02711784]
[1645882804238,0.3601978,39165.0,39159.0,0.02711784]
[1645882804736,0.3601978,39165.0,39158.0,0.13889381]
[1645882804737,0.2601978,39165.0,39158.0,0.13889381]
[1645882804936,0.25988669,39165.0,39158.0,0.13889381]
[1645882805336,0.2601978,39165.0,39158.0,0.13889381]
[1645882805937,0.2601978,39165.0,39161.0,0.02711784]
[1645882806336,0.25988669,39165.0,39161.0,0.02711784]
[1645882806541,0.26019779,39165.0,39161.0,0.02711784]
[1645882807401,0.25988669,39165.0,39161.0,0.02711784]
[1645882807602,0.25014968,39165.0,39161.0,0.02711784]
[1645882807802,0.25046071,39165.0,39161.0,0.02711784]
[1645882808401,0.25046071,39165.0,39158.0,0.13889381]
[1645882808603,0.18642489,39170.0,39165.0,40.76272075]
[1645882808804,0.28442489,39170.0,39165.0,40.76272075]
[1645882810003,0.00031102,39169.0,39165.0,40.76272075]
[1645882811040,0.28442489,39170.0,39165.0,40.76272075]
[1645882811441,0.00031102,39169.0,39165.0,40.76272075]
[1645882812243,0.54442489,39170.0,39165.0,40.76272075]
[1645882812446,0.16389399,39166.0,39165.0,40.76272075]
[1645882812643,0.56519399,39166.0,39165.0,40.76272075]
[1645882813243,0.56519399,39166.0,39165.0,40.37929575]
[1645882813745,0.66619399,39166.0,39165.0,40.37929575]
[1645882814791,0.66519399,39166.0,39165.0,40.37929575]
[1645882814989,0.86499399,39166.0,39165.0,40.37929575]
[1645882815390,0.94941889,39166.0,39165.0,40.37929575]
[1645882816589,1.04941889,39166.0,39165.0,40.37929575]
[1645882816789,1.83371889,39166.0,39165.0,40.37929575]
[1645882816996,1.50958679,39166.0,39165.0,39.99586975]
[1645882817292,1.39881889,39166.0,39165.0,39.99586975]
[1645882817491,1.49881889,39166.0,39165.0,39.99586975]
[1645882817693,1.50882016,39166.0,39165.0,39.99586975]
[1645882817894,1.49881889,39166.0,39165.0,39.99586975]
[1645882818095,2.29690377,39166.0,39165.0,39.61244675]
[1645882818294,1.41260377,39166.0,39165.0,39.61244675]
[1645882818541,1.39881889,39166.0,39165.0,39.61244675]
[1645882819442,0.94941889,39166.0,39165.0,39.61244675]
[1645882821246,1.14921889,39166.0,39165.0,39.61244675]
[1645882828239,0.89801889,39166.0,39165.0,39.61244675]
[1645882828538,0.36389399,39166.0,39165.0,39.61244675]
[1645882828737,0.44831889,39166.0,39165.0,39.61244675]
[1645882828938,0.36389399,39166.0,39165.0,39.61244675]
[1645882830099,0.36489399,39166.0,39165.0,39.61244675]
[1645882830795,0.36389399,39166.0,39165.0,39.61244675]
[1645882831795,0.56369399,39166.0,39165.0,39.61244675]
[1645882831994,0.363694,39166.0,39165.0,39.61244675]
[1645882832197,0.2998,39166.0,39165.0,39.61244675]
[1645882832396,0.1,39166.0,39165.0,39.61244675]
[1645882832800,0.45989999,39170.0,39165.0,39.61244675]
[1645882832997,0.00031103,39167.0,39165.0,39.61244675]
[1645882833840,0.1998,39168.0,39165.0,39.61244675]
[1645882834039,0.05,39169.0,39165.0,39.61244675]
[1645882834239,0.00031103,39168.0,39165.0,39.61244675]
[1645882835040,0.1998,39168.0,39165.0,39.61244675]
[1645882835241,0.05,39169.0,39165.0,39.61244675]
[1645882835444,0.00031103,39168.0,39165.0,39.61244675]
[1645882836242,0.05,39169.0,39165.0,39.61244675]
[1645882836641,0.00031103,39168.0,39165.0,39.61244675]
[1645882837492,0.2498,39169.0,39165.0,39.63956459]
[1645882837688,0.05,39169.0,39165.0,39.63956459]
[1645882837890,0.00031103,39168.0,39165.0,39.63956459]
[1645882838689,0.051,39169.0,39165.0,39.63956459]
[1645882838889,0.00031103,39168.0,39166.0,0.3]
[1645882839189,0.00031103,39168.0,39165.0,39.61244675]
[1645882839988,0.21387899,39169.0,39165.0,39.61244675]
[1645882840190,0.00031103,39168.0,39165.0,39.61244675]
[1645882841143,0.21387899,39169.0,39165.0,39.61244675]
[1645882841442,0.20919002,39169.0,39165.0,39.61244675]
[1645882841644,0.20919002,39169.0,39166.0,1.15]
[1645882841843,0.20919002,39169.0,39165.0,39.61244675]
[1645882842044,0.21019002,39169.0,39165.0,39.61244675]
[1645882843443,0.20919002,39169.0,39165.0,39.61244675]
[1645882844045,0.20919002,39169.0,39165.0,39.63956459]
[1645882844789,0.20919002,39169.0,39165.0,39.61244675]
[1645882845387,0.14531102,39169.0,39165.0,39.61244675]
[1645882845587,0.14531102,39169.0,39165.0,39.63956459]
[1645882845989,0.14631102,39169.0,39165.0,39.61244675]
[1645882847389,0.20919002,39169.0,39165.0,39.61244675]
[1645882848840,0.10919003,39169.0,39165.0,39.61244675]
[1645882849038,0.20919002,39169.0,39165.0,39.61244675]
[1645882850137,0.21019002,39169.0,39165.0,39.61244675]
[1645882851244,0.04531103,39169.0,39165.0,39.63956459]
[1645882852038,0.04631103,39169.0,39165.0,39.63956459]
[1645882852488,0.21019002,39169.0,39165.0,39.61244675]
[1645882852990,0.11019003,39169.0,39165.0,39.61244675]
[1645882853190,0.21019002,39169.0,39165.0,39.61244675]
[1645882853392,0.20919002,39169.0,39165.0,39.61244675]
[1645882853990,0.45909002,39169.0,39165.0,39.61244675]
[1645882854392,0.35909003,39169.0,39165.0,39.61244675]
[1645882856041,0.36009003,39169.0,39165.0,39.61244675]
[1645882856837,0.36009003,39169.0,39165.0,39.63956459]
[1645882856838,0.29621103,39169.0,39165.0,39.63956459]
[1645882857437,0.29521103,39169.0,39165.0,39.63956459]
[1645882857837,0.29521103,39169.0,39165.0,39.61244675]
[1645882859891,0.29521103,39169.0,39166.0,0.3]
[1645882860095,0.29521103,39169.0,39165.0,39.63956459]
[1645882860096,0.29521103,39169.0,39165.0,39.61244675]
[1645882860895,0.29521103,39169.0,39166.0,0.3]
[1645882861499,0.29521103,39169.0,39165.0,39.63956459]
[1645882862093,0.29621103,39169.0,39165.0,39.63956459]
[1645882862395,0.29621103,39169.0,39165.0,39.61244675]
[1645882862593,0.29621103,39169.0,39165.0,39.61234411]
[1645882863395,0.29521103,39169.0,39165.0,39.61234411]
[1645882864047,0.29621103,39169.0,39165.0,39.61234411]
[1645882865447,0.29521103,39169.0,39165.0,39.61234411]
[1645882866047,0.29621103,39169.0,39165.0,39.61234411]
[1645882866451,0.36009103,39169.0,39165.0,39.61234411]
[1645882867489,0.0999,39168.0,39165.0,39.61234411]
[1645882867689,0.05,39167.0,39165.0,39.61234411]
[1645882870192,0.051,39167.0,39165.0,39.61234411]
[1645882871268,0.05,39167.0,39165.0,39.61234411]
[1645882872064,0.051,39167.0,39165.0,39.61234411]
[1645882873064,0.09999999,39166.0,39165.0,39.61234411]
[1645882873263,0.14999999,39166.0,39165.0,39.61234411]
[1645882873864,0.05,39166.0,39165.0,39.61234411]
[1645882874065,0.09999999,39166.0,39165.0,39.61234411]
[1645882874371,0.20239999,39166.0,39165.0,39.61234411]
[1645882875308,0.20139999,39166.0,39165.0,39.61234411]
[1645882876110,0.20239999,39166.0,39165.0,39.61234411]
[1645882877309,0.20139999,39166.0,39165.0,39.61234411]
[1645882878209,0.20239999,39166.0,39165.0,39.61234411]
[1645882879250,0.1024,39166.0,39165.0,39.61234411]
[1645882879454,0.1014,39166.0,39165.0,39.61234411]
[1645882879652,0.0514,39166.0,39165.0,39.61234411]
[1645882880151,0.0524,39166.0,39165.0,39.61234411]
[1645882881152,0.15239999,39166.0,39165.0,39.61234411]
[1645882881450,0.15139999,39166.0,39165.0,39.61234411]
[1645882882061,0.40129999,39166.0,39165.0,39.61234411]
[1645882882517,0.48572489,39166.0,39165.0,39.61234411]
[1645882882717,0.40129999,39166.0,39165.0,39.61234411]
[1645882882917,0.68552489,39166.0,39165.0,39.61234411]
[1645882884119,0.68652489,39166.0,39165.0,39.61234411]
[1645882884319,0.78652489,39166.0,39165.0,39.61234411]
[1645882885123,1.86796469,39166.0,39165.0,39.61234411]
[1645882885322,2.02022489,39166.0,39165.0,39.22881309]
[1645882885521,2.50556032,39166.0,39165.0,39.22881309]
[1645882885720,2.50556032,39166.0,39165.0,38.84536609]
[1645882885923,2.13659499,39166.0,39165.0,38.84536609]
[1645882886150,1.68819499,39166.0,39165.0,38.84536609]
[1645882886350,0.65399499,39166.0,39165.0,38.84536609]
[1645882886752,0.81947009,39166.0,39165.0,38.84536609]
[1645882887052,0.70209999,39166.0,39165.0,38.84536609]
[1645882887253,1.57082489,39166.0,39165.0,38.84536609]
[1645882887450,0.78652489,39166.0,39165.0,38.84536609]
[1645882887655,1.57082489,39166.0,39165.0,38.84536609]
[1645882888051,1.56982489,39166.0,39165.0,38.84536609]
[1645882888251,0.78652489,39166.0,39165.0,38.84536609]
[1645882888654,1.57082489,39166.0,39165.0,38.84536609]
[1645882889051,1.67082489,39166.0,39165.0,38.84536609]
[1645882889452,1.66982489,39166.0,39165.0,38.46193509]
[1645882890093,1.67082489,39166.0,39165.0,38.46193509]
[1645882890291,1.57082489,39166.0,39165.0,38.46193509]
[1645882890692,1.67082489,39166.0,39165.0,38.46193509]
[1645882890891,1.86253589,39166.0,39165.0,38.46193509]
[1645882891091,2.34798999,39166.0,39165.0,38.46193509]
[1645882891291,1.86253589,39166.0,39165.0,38.46193509]
[1645882891492,1.86153589,39166.0,39165.0,38.46193509]
[1645882892093,1.86253589,39166.0,39165.0,38.46193509]
[1645882893295,1.86153589,39166.0,39165.0,38.46193509]
[1645882894045,1.07723589,39166.0,39165.0,38.46193509]
[1645882894441,1.86153589,39166.0,39165.0,38.46193509]
[1645882894641,1.86153589,39166.0,39165.0,38.25193509]
[1645882894841,1.07723589,39166.0,39165.0,38.25193509]
[1645882895644,1.86153589,39166.0,39165.0,38.25193509]
[1645882896246,1.86253589,39166.0,39165.0,38.25193509]
[1645882896445,1.07823589,39166.0,39165.0,38.25193509]
[1645882897293,2.31193589,39166.0,39165.0,38.25193509]
[1645882897492,1.52663589,39166.0,39165.0,38.25193509]
[1645882897696,2.31093589,39166.0,39165.0,38.25193509]
[1645882898295,2.31193589,39166.0,39165.0,38.25193509]
[1645882899492,1.52663589,39166.0,39165.0,38.25193509]
[1645882900296,1.52763589,39166.0,39165.0,38.25193509]
[1645882900492,2.31193589,39166.0,39165.0,38.25193509]
[1645882900694,1.52763589,39166.0,39165.0,38.25193509]
[1645882901355,1.32783589,39166.0,39165.0,38.25193509]
[1645882901547,1.32683589,39166.0,39165.0,38.25193509]
[1645882901947,2.11113589,39166.0,39165.0,38.25193509]
[1645882902148,2.11213589,39166.0,39165.0,38.25193509]
[1645882902547,1.32783589,39166.0,39165.0,38.25193509]
[1645882902748,1.52763589,39166.0,39165.0,38.25193509]
[1645882902950,2.31193589,39166.0,39165.0,38.25193509]
[1645882903347,1.52663589,39166.0,39165.0,38.25193509]
[1645882903747,2.31093589,39166.0,39165.0,38.25193509]
[1645882903948,2.11113589,39166.0,39165.0,38.25193509]
[1645882904149,1.32783589,39166.0,39165.0,38.25193509]
[1645882904347,1.52763589,39166.0,39165.0,38.25193509]
[1645882904789,2.31193589,39166.0,39165.0,38.25193509]
[1645882905494,1.52663589,39166.0,39165.0,38.25193509]
[1645882905891,2.31093589,39166.0,39165.0,38.25193509]
[1645882906092,1.52663589,39166.0,39165.0,38.25193509]
[1645882906290,1.52763589,39166.0,39165.0,38.25193509]
[1645882907490,1.52663589,39166.0,39165.0,38.25193509]
[1645882908194,1.52763589,39166.0,39165.0,38.25193509]
[1645882908843,1.32783589,39166.0,39165.0,38.25193509]
[1645882909042,1.52763589,39166.0,39165.0,38.25193509]
[1645882909442,1.32683589,39166.0,39165.0,38.25193509]
[1645882909842,1.07723589,39166.0,39165.0,38.25193509]
[1645882910043,0.87743589,39166.0,39165.0,38.25193509]
[1645882910243,1.07723589,39166.0,39165.0,38.25193509]
[1645882910444,0.87743589,39166.0,39165.0,38.25193509]
[1645882910950,0.52753589,39166.0,39165.0,38.25193509]
[1645882911147,0.1844249,39166.0,39165.0,38.25193509]
[1645882911348,0.1,39166.0,39165.0,38.25193509]
[1645882912145,0.19999999,39166.0,39165.0,38.25193509]
[1645882912396,0.29979999,39166.0,39165.0,38.25193509]
[1645882912798,0.3498,39167.0,39165.0,38.25193509]
[1645882912997,0.05,39166.0,39165.0,38.25193509]
[1645882913200,0.1,39166.0,39165.0,38.25193509]
[1645882913700,0.19999999,39166.0,39165.0,38.25193509]
[1645882913996,0.163888,39166.0,39165.0,38.25193509]
[1645882914197,0.164888,39166.0,39165.0,38.25193509]
[1645882915198,0.51478799,39166.0,39165.0,38.25193509]
[1645882915597,0.5074046,39166.0,39165.0,38.25193509]
[1645882916249,0.5084046,39166.0,39165.0,38.25193509]
[1645882917444,0.5074046,39166.0,39165.0,38.25193509]
[1645882917845,0.40740461,39166.0,39165.0,38.25193509]
[1645882918247,0.40840461,39166.0,39165.0,38.25193509]
[1645882919449,0.40740461,39166.0,39165.0,38.25193509]
[1645882920298,0.40840461,39166.0,39165.0,38.25193509]
[1645882921298,0.40840461,39166.0,39165.0,38.25187411]
[1645882921504,0.40740461,39166.0,39165.0,38.25187411]
[1645882926953,0.45880461,39166.0,39165.0,38.25187411]
[1645882927396,0.5588046,39166.0,39165.0,38.25187411]
[1645882928199,0.45980461,39166.0,39165.0,38.25187411]
[1645882929203,0.5598046,39166.0,39165.0,38.25187411]
[1645882929405,0.5588046,39166.0,39165.0,38.25187411]
[1645882930302,0.5598046,39166.0,39165.0,38.25187411]
[1645882931547,0.5588046,39166.0,39165.0,38.25187411]
[1645882932251,0.5598046,39166.0,39165.0,38.25187411]
[1645882932849,0.45980461,39166.0,39165.0,38.25187411]
[1645882933451,0.45880461,39166.0,39165.0,38.25187411]
[1645882933853,0.5588046,39166.0,39165.0,38.25187411]
[1645882934451,0.55872606,39166.0,39165.0,38.25187411]
[1645882935398,0.55845955,39166.0,39165.0,38.25187411]
[1645882936400,0.45845956,39166.0,39165.0,38.25187411]
[1645882940652,0.55845955,39166.0,39165.0,38.25187411]
[1645882940854,0.45845956,39166.0,39165.0,38.25187411]
[1645882943699,0.40705956,39166.0,39165.0,38.25187411]
[1645882950205,0.40805956,39166.0,39165.0,38.25187411]
[1645882951000,0.40705956,39166.0,39165.0,38.25187411]
[1645882954650,0.2499,39166.0,39165.0,38.25187411]
[1645882954853,0.2842249,39167.0,39165.0,38.27899195]
[1645882954854,0.03621,39167.0,39165.0,38.27899195]
[1645882955055,0.008,39169.0,39166.0,1.45]
[1645882955456,0.008,39169.0,39168.0,0.02711784]
[1645882955852,0.26013399,39170.0,39168.0,0.02711784]
[1645882956053,0.25877318,39170.0,39168.0,0.02711784]
[1645882956453,0.25863919,39170.0,39168.0,0.02711784]
[1645882956853,0.25863919,39170.0,39168.0,0.32711784]
[1645882957704,0.05,39176.0,39169.0,1.15]
[1645882957903,0.001,39175.0,39171.0,0.17418417]
[1645882959203,0.00131347,39175.0,39171.0,0.17418417]
[1645882959804,0.00131347,39175.0,39172.0,0.3]
[1645882960006,0.00131347,39175.0,39171.0,0.17418417]
[1645882960204,0.00131347,39175.0,39173.0,0.02711784]
[1645882960205,0.001,39175.0,39173.0,0.02711784]
[1645882960405,0.00113421,39175.0,39173.0,0.02711784]
[1645882961255,0.0999,39177.0,39173.0,0.02711784]
[1645882961456,0.0999,39177.0,39172.0,0.3]
[1645882961457,0.0999,39177.0,39176.0,0.02711784]
[1645882961756,0.0032,39178.0,39176.0,0.02711784]
[1645882961957,0.0032,39178.0,39177.0,0.15434589]
[1645882963558,0.067067,39178.0,39177.0,0.15434589]
[1645882965500,0.0032,39178.0,39177.0,0.15434589]
[1645882965901,0.0532,39178.0,39177.0,0.15434589]
[1645882966103,0.0032,39178.0,39177.0,0.15434589]
[1645882966302,0.0532,39178.0,39177.0,0.15434589]
[1645882966701,0.0032,39178.0,39177.0,0.15434589]
[1645882967706,0.2332,39178.0,39177.0,0.15434589]
[1645882968104,0.2332,39178.0,39169.0,1.17711784]
[1645882968105,0.063868,39177.0,39169.0,1.17711784]
[1645882968308,0.113868,39177.0,39169.0,1.17711784]
[1645882968753,0.0003122,39175.0,39169.0,1.17711784]
[1645882969152,0.0003122,39175.0,39171.0,0.14377609]
[1645882969753,0.113868,39177.0,39172.0,0.02711784]
[1645882969952,0.0003122,39175.0,39171.0,0.14377609]
[1645882970652,0.0003122,39175.0,39169.0,1.17711784]
[1645882970860,0.113868,39177.0,39169.0,1.17711784]
[1645882971153,0.0003131,39175.0,39169.0,1.17711784]
[1645882971554,0.0003131,39175.0,39169.0,1.15]
[1645882971954,0.0023131,39175.0,39169.0,1.15]
[1645882972154,0.002,39175.0,39169.0,1.15]
[1645882972402,0.063875,39172.0,39167.0,0.02711784]
[1645882972601,0.063875,39172.0,39165.0,0.199]
[1645882972805,0.063875,39172.0,39163.0,0.02711784]
[1645882973603,0.00031312,39170.0,39163.0,0.02711784]
[1645882974607,0.1563,39168.0,39163.0,0.02711784]
[1645882974806,0.063886,39166.0,39163.0,0.02711784]
[1645882975103,0.115286,39166.0,39163.0,0.02711784]
[1645882976062,0.116286,39166.0,39163.0,0.02711784]
[1645882976559,0.116286,39166.0,39161.0,0.02711784]
[1645882976959,0.116286,39166.0,39160.0,0.02711784]
[1645882977359,0.115286,39166.0,39160.0,0.02711784]
[1645882977961,0.1563,39164.0,39160.0,0.02711784]
[1645882980003,0.1998,39163.0,39160.0,0.02711784]
[1645882981004,0.1998,39163.0,39160.0,0.02703516]
[1645882982010,0.2018,39163.0,39160.0,0.02703516]
[1645882982203,0.2018,39163.0,39159.0,0.00031313]
[1645882983006,0.2018,39163.0,39156.0,0.19795944]
[1645882983207,0.1998,39163.0,39159.0,0.00031313]
[1645882984060,0.1998,39163.0,39156.0,0.19795944]
[1645882984061,0.2018,39163.0,39156.0,0.19795944]
[1645882984456,0.2018,39163.0,39159.0,0.02734829]
[1645882984855,0.2018,39163.0,39159.0,0.00031313]
[1645882985257,0.1998,39163.0,39157.0,0.02703516]
[1645882985656,0.1998,39163.0,39159.0,0.00031313]
[1645882986760,0.1998,39163.0,39160.0,0.02703516]
[1645882988807,0.1998,39163.0,39159.0,0.00031313]
[1645882989008,0.1998,39163.0,39156.0,0.17092428]
[1645882989208,0.1998,39163.0,39159.0,0.00031313]
[1645882989411,0.1998,39163.0,39161.0,0.02703516]
[1645882990009,0.2018,39163.0,39161.0,0.02703516]
[1645882991255,0.23,39164.0,39162.0,0.17149158]
[1645882992059,0.232,39164.0,39162.0,0.17149158]
[1645882992557,0.232,39164.0,39161.0,0.02703516]
[1645882993355,0.23,39164.0,39161.0,0.02703516]
[1645882998007,0.232,39164.0,39161.0,0.02703516]
[1645882998851,0.23174458,39164.0,39161.0,0.02703516]
[1645882999251,0.22974458,39164.0,39161.0,0.02703516]
[1645883000054,0.23274458,39164.0,39161.0,0.02703516]
[1645883000853,0.1,39166.0,39164.0,38.01912953]
[1645883001053,0.1563,39166.0,39164.0,38.01912953]
[1645883001254,0.2563,39166.0,39164.0,38.01912953]
[1645883001854,0.1,39166.0,39164.0,38.01912953]
[1645883002054,0.09999999,39165.0,39164.0,38.01912953]
[1645883002312,0.1014,39165.0,39164.0,38.01912953]
[1645883002712,0.1514,39165.0,39164.0,38.01912953]
[1645883003611,0.6008,39165.0,39164.0,38.01912953]
[1645883004013,0.6018,39165.0,39164.0,38.01912953]
[1645883004512,0.8318,39165.0,39164.0,38.01912953]
[1645883004913,0.94395965,39165.0,39164.0,38.01912953]
[1645883005124,1.53159344,39165.0,39164.0,38.01912953]
[1645883005313,1.6171121,39165.0,39164.0,38.01912953]
[1645883005515,2.40143062,39165.0,39164.0,38.01912953]
[1645883005715,1.74009683,39165.0,39164.0,38.01912953]
[1645883005915,0.95579683,39165.0,39164.0,38.01912953]
[1645883006160,1.25679683,39165.0,39164.0,38.01912953]
[1645883006361,1.17027817,39165.0,39164.0,38.01912953]
[1645883006560,1.24461865,39165.0,39164.0,38.01912953]
[1645883007060,2.02891865,39165.0,39164.0,38.01912953]
[1645883007260,2.04126409,39165.0,39164.0,38.01912953]
[1645883007459,1.68737285,39165.0,39164.0,38.01912953]
[1645883007663,1.45576409,39165.0,39164.0,38.01912953]
[1645883007859,1.88718165,39165.0,39164.0,38.01912953]
[1645883008061,1.68738165,39165.0,39164.0,38.01912953]
[1645883008462,1.25596409,39165.0,39164.0,38.01912953]
[1645883008660,1.45576409,39165.0,39164.0,38.01912953]
[1645883008860,1.25596409,39165.0,39164.0,38.01912953]
[1645883009661,1.68738317,39165.0,39164.0,38.01912953]
[1645883010109,0.95696409,39165.0,39164.0,37.00642009]
[1645883010509,0.87044543,39165.0,39164.0,37.00642009]
[1645883010711,0.2506,39165.0,39164.0,37.00642009]
[1645883010914,0.2506,39165.0,39164.0,37.03345525]
[1645883010915,0.001,39165.0,39164.0,37.03345525]
[1645883011314,0.00029216,39170.0,39164.0,37.41122025]
[1645883011513,0.00029216,39170.0,39165.0,0.43714224]
[1645883011710,0.00029216,39170.0,39169.0,0.02703516]
[1645883011913,1.0066,39173.0,39165.0,0.4641774]
[1645883012111,0.00029217,39170.0,39165.0,0.4641774]
[1645883012410,0.00029217,39170.0,39165.0,0.43714224]
[1645883012818,0.00029217,39170.0,39165.0,0.4641774]
[1645883013114,0.25629999,39174.0,39166.0,0.3]
[1645883013314,0.00029217,39170.0,39166.0,0.3]
[1645883013569,0.00029217,39170.0,39165.0,0.4641774]
[1645883013770,0.00029217,39170.0,39165.0,0.43714224]
[1645883014173,0.42017299,39174.0,39165.0,0.43714224]
[1645883014573,0.00029217,39170.0,39165.0,0.43714224]
[1645883015475,0.35629999,39174.0,39165.0,0.4641774]
[1645883015672,0.35629999,39174.0,39172.0,0.13364885]
[1645883016073,0.42017399,39174.0,39165.0,0.32703516]
[1645883016272,0.48405119,39174.0,39165.0,0.02703516]
[1645883016474,0.48405119,39174.0,39164.0,37.00642009]
[1645883016876,0.00029217,39171.0,39164.0,37.00642009]
[1645883017073,0.063881,39169.0,39164.0,37.00642009]
[1645883017307,0.063881,39169.0,39165.0,0.1439791]
[1645883018509,0.00029217,39170.0,39165.0,0.4439791]
[1645883018710,0.00029217,39170.0,39168.0,0.02703516]
[1645883019110,0.08652634,39173.0,39169.0,0.02703516]
[1645883019308,0.00013476,39171.0,39169.0,0.02703516]
[1645883019710,0.00013476,39171.0,39170.0,0.16119907]
[1645883020209,1.1086,39174.0,39170.0,0.16119907]
[1645883020613,0.00013476,39172.0,39170.0,0.16119907]
[1645883021457,0.18697606,39173.0,39170.0,0.16119907]
[1645883021652,0.18729102,39173.0,39170.0,0.16119907]
[1645883022652,0.08697607,39173.0,39170.0,0.16119907]
[1645883022851,0.08729103,39173.0,39170.0,0.16119907]
[1645883023451,0.08829103,39173.0,39170.0,0.16119907]
[1645883023652,0.13829103,39173.0,39170.0,0.16119907]
[1645883023853,0.13797607,39173.0,39170.0,0.16119907]
[1645883024055,0.13829663,39173.0,39170.0,0.16119907]
[1645883024653,0.13729663,39173.0,39170.0,0.16119907]
[1645883025107,0.13697607,39173.0,39170.0,0.16119907]
[1645883025313,0.13727363,39173.0,39170.0,0.16119907]
[1645883026109,0.09999999,39172.0,39170.0,0.16119907]
[1645883026311,0.05,39173.0,39170.0,0.16119907]
[1645883026510,0.00029756,39173.0,39170.0,0.16119907]
[1645883027513,0.001,39173.0,39170.0,0.16119907]
[1645883027711,0.00129163,39173.0,39170.0,0.16119907]
[1645883028661,1.1066,39174.0,39170.0,0.16119907]
[1645883028960,0.000293,39173.0,39170.0,0.16119907]
[1645883029161,0.000293,39173.0,39171.0,0.3]
[1645883029362,0.000293,39173.0,39172.0,0.02703516]
[1645883029863,0.001,39174.0,39172.0,0.02703516]
[1645883030064,0.00129299,39174.0,39172.0,0.02703516]
[1645883030667,0.00029299,39174.0,39172.0,0.02703516]
[1645883031070,0.0032,39178.0,39172.0,0.02703516]
[1645883031366,0.00029335,39175.0,39172.0,0.02703516]
[1645883031567,0.00029335,39175.0,39173.0,0.17912881]
[1645883032310,0.0032,39178.0,39173.0,0.17912881]
[1645883032507,0.00029345,39176.0,39173.0,0.20616397]
[1645883033507,0.0032,39178.0,39176.0,0.02703516]
[1645883035309,0.0032,39178.0,39173.0,0.17912881]
[1645883035710,0.00029341,39179.0,39174.0,0.85]
[1645883035909,0.0033,39180.0,39176.0,0.02703516]
[1645883036157,0.0002934,39177.0,39176.0,0.02703516]